fUST/lending_fUST_20250520
["ID","MTS","AMOUNT","RATE_DAILY","PERIOD"]
[361684988,1747689049245,-151.0,0.00019,2]
[361684990,1747689049254,-998.68447496,0.00019,7]
[361684992,1747689049264,-314.45853212,0.00019,7]
[361684994,1747689049273,-151.0,0.00019,2]
[361684996,1747689049282,-212.35735062,0.00019,7]
[361684998,1747689049291,-12638.53552368,0.00019,7]
[361685000,1747689049300,-1057.67194981,0.00019003,2]
[361685002,1747689049309,-151.0,0.000191,2]
[361685004,1747689049318,-419.24628062,0.00019159,2]
[361685006,1747689049327,-160.34740956,0.00019177,2]
[361685008,1747689049337,-297.44693426,0.00019177,2]
[361685010,1747689049346,-430.0,0.00019178,2]
[361685012,1747689049355,-430.0,0.00019178,2]
[361685014,1747689049364,-430.0,0.00019178,2]
[361685016,1747689049373,-430.0,0.00019178,2]
[361685018,1747689049382,-430.0,0.00019178,2]
[361685020,1747689049391,-430.0,0.00019178,2]
[361685021,1747689049401,-430.0,0.00019178,2]
[361685022,1747689049410,-430.0,0.00019178,2]
[361685023,1747689049420,-430.0,0.00019178,2]
[361685024,1747689049433,-430.0,0.00019178,2]
[361685025,1747689049583,-266.43657055,0.00019178,2]
[361685026,1747689049592,-430.0,0.00019178,2]
[361685027,1747689049601,-518.33,0.00019178,2]
[361685028,1747689049610,-430.0,0.00019178,2]
[361685029,1747689049620,-151.0,0.00019178,2]
[361685030,1747689049629,-207.692256,0.00019178,2]
[361685032,1747689049639,-190.0,0.00019178,2]
[361685034,1747689049648,-430.0,0.00019178,2]
[361685036,1747689049658,-430.0,0.00019178,2]
[361685038,1747689049667,-558.14,0.00019178,2]
[361685040,1747689049676,-350.0,0.00019178,2]
[361685042,1747689049686,-430.0,0.00019178,2]
[361685044,1747689049696,-430.0,0.00019178,2]
[361685046,1747689049706,-430.0,0.00019178,2]
[361685048,1747689049715,-290.0,0.00019178,2]
[361685050,1747689049725,-430.0,0.00019178,2]
[361685052,1747689049736,-430.0,0.00019178,2]
[361685054,1747689049745,-290.0,0.00019178,2]
[361685056,1747689049754,-290.0,0.00019178,2]
[361685058,1747689049763,-290.0,0.00019178,2]
[361685060,1747689049773,-430.0,0.00019178,2]
[361685062,1747689049783,-529.73,0.00019178,2]
[361685064,1747689049792,-430.0,0.00019178,2]
[361685066,1747689049801,-170.0,0.00019178,2]
[361685068,1747689049811,-451.54,0.00019178,2]
[361685070,1747689049820,-840.29,0.00019178,2]
[361685072,1747689049832,-542.82,0.00019178,2]
[361685074,1747689049842,-2121.46,0.00019178,2]
[361685076,1747689049851,-430.0,0.00019178,2]
[361685078,1747689049861,-455.55,0.00019178,2]
[361685080,1747689049871,-460.0,0.00019178,2]
[361685082,1747689049880,-770.45,0.00019178,2]
[361685084,1747689049889,-308.91275189,0.00019178,2]
[361685086,1747689049899,-430.0,0.00019178,2]
[361685088,1747689049908,-844.25,0.00019178,2]
[361685090,1747689049918,-430.0,0.00019178,2]
[361685092,1747689049928,-430.0,0.00019178,2]
[361685094,1747689049937,-430.0,0.00019178,2]
[361685096,1747689049947,-430.0,0.00019178,2]
[361685098,1747689049956,-511.1773533,0.00019178,2]
[361685100,1747689049965,-561.3,0.00019178,2]
[361685102,1747689049974,-430.0,0.00019178,2]
[361685104,1747689049983,-423.46,0.00019178,2]
[361685106,1747689049993,-527.57,0.00019178,2]
[361685108,1747689050003,-430.0,0.00019178,2]
[361685111,1747689050014,-430.0,0.00019178,2]
[361685112,1747689050025,-839.02,0.00019178,2]
[361685115,1747689050036,-216.66865291,0.00019178,2]
[361685116,1747689050045,-430.0,0.00019178,2]
[361685119,1747689050056,-430.0,0.00019178,2]
[361685120,1747689050065,-430.0,0.00019178,2]
[361685123,1747689050075,-151.0,0.00019178,2]
[361685125,1747689050085,-151.0,0.00019178,2]
[361685127,1747689050095,-430.0,0.00019178,2]
[361685128,1747689050104,-430.0,0.00019178,2]
[361685130,1747689050114,-430.0,0.00019178,2]
[361685132,1747689050125,-430.0,0.00019178,2]
[361685134,1747689050135,-788.94,0.00019178,2]
[361685136,1747689050145,-430.0,0.00019178,2]
[361685138,1747689050155,-430.0,0.00019178,2]
[361685140,1747689050164,-430.0,0.00019178,2]
[361685142,1747689050173,-430.0,0.00019178,2]
[361685144,1747689050182,-430.0,0.00019178,2]
[361685146,1747689050191,-806.69,0.00019178,2]
[361685148,1747689050199,-430.0,0.00019178,2]
[361685150,1747689050209,-378.42043122,0.00019178,2]
[361685152,1747689050218,-310.0,0.00019178,2]
[361685154,1747689050227,-430.0,0.00019178,2]
[361685156,1747689050237,-430.0,0.00019178,2]
[361685158,1747689050246,-430.0,0.00019178,2]
[361685160,1747689050256,-430.0,0.00019178,2]
[361685162,1747689050266,-430.0,0.00019178,2]
[361685164,1747689050275,-430.0,0.00019178,2]
[361685166,1747689050286,-480.22,0.00019178,2]
[361685168,1747689050296,-430.0,0.00019178,2]
[361685170,1747689050305,-430.0,0.00019178,2]
[361685171,1747689050315,-350.0,0.00019178,2]
[361685172,1747689050324,-430.0,0.00019178,2]
[361685173,1747689050334,-825.86,0.00019178,2]
[361685174,1747689050344,-430.0,0.00019178,2]
[361685175,1747689050354,-430.0,0.00019178,2]
[361685176,1747689050363,-430.0,0.00019178,2]
[361685177,1747689050373,-430.0,0.00019178,2]
[361685178,1747689050382,-430.0,0.00019178,2]
[361685179,1747689050391,-430.0,0.00019178,2]
[361685180,1747689050400,-430.0,0.00019178,2]
[361685181,1747689050410,-430.0,0.00019178,2]
[361685182,1747689050420,-430.0,0.00019178,2]
[361685183,1747689050431,-430.0,0.00019178,2]
[361685184,1747689050441,-430.0,0.00019178,2]
[361685185,1747689050451,-430.0,0.00019178,2]
[361685186,1747689050460,-430.0,0.00019178,2]
[361685187,1747689050470,-230.0,0.00019178,2]
[361685188,1747689050480,-190.0,0.00019178,2]
[361685189,1747689050489,-430.0,0.00019178,2]
[361685190,1747689050499,-743.31,0.00019178,2]
[361685191,1747689050509,-430.0,0.00019178,2]
[361685192,1747689050520,-430.0,0.00019178,2]
[361685193,1747689050529,-430.0,0.00019178,2]
[361685194,1747689050540,-230.0,0.00019178,2]
[361685195,1747689050549,-208.32954171,0.00019178,2]
[361685196,1747689050565,-1.67045829,0.00019178,2]
[361685197,1747689050574,-298.32954171,0.00019178,2]
[361685220,1747689051023,-441.41,0.0001863,2]
[361685222,1747689051033,-131.67045829,0.00019178,2]
[361685224,1747689051043,-430.0,0.00019178,2]
[361685226,1747689051051,-430.0,0.00019178,2]
[361685228,1747689051061,-326.36,0.00019178,2]
[361685230,1747689051070,-106.85727861,0.00019178,2]
[361685257,1747689051491,-430.0,0.00018356,2]
[361685258,1747689051502,-450.0,0.00018356,2]
[361685259,1747689051512,-569.3764315,0.00018356,2]
[361685260,1747689067652,155.76534267,0.00027,120]
[361685261,1747689102060,495.06543913,0.00027,120]
[361685307,1747690232035,-5000.0,0.00013562,2]
[361685309,1747690232045,-260.88702,0.00013699,2]
[361685311,1747690232055,-175.382518,0.0001724,2]
[361685313,1747690232065,-151.0,0.00018,2]
[361685315,1747690232075,-506.45307935,0.00018,7]
[361685317,1747690232084,-151.0,0.00018345,2]
[361685319,1747690232093,-300.0,0.00018355,2]
[361685321,1747690232103,-1200.0,0.00018355,2]
[361685323,1747690232112,-500.0,0.00018355,2]
[361685325,1747690232123,-500.0,0.00018355,2]
[361685328,1747690232139,-500.0,0.00018355,2]
[361685331,1747690232148,-500.0,0.00018355,2]
[361685334,1747690232157,-500.0,0.00018355,2]
[361685337,1747690232167,-500.0,0.00018355,2]
[361685340,1747690232176,-500.0,0.00018355,2]
[361685343,1747690232185,-500.0,0.00018355,2]
[361685346,1747690232194,-500.0,0.00018355,2]
[361685348,1747690232203,-500.0,0.00018355,2]
[361685350,1747690232212,-500.0,0.00018355,2]
[361685352,1747690232222,-500.0,0.00018355,2]
[361685354,1747690232232,-500.0,0.00018355,2]
[361685356,1747690232241,-500.0,0.00018355,2]
[361685358,1747690232250,-334.90243682,0.00018355,2]
[361685359,1747690232259,-500.0,0.00018355,2]
[361685360,1747690232269,-500.0,0.00018355,2]
[361685361,1747690232278,-500.0,0.00018355,2]
[361685362,1747690232287,-500.0,0.00018355,2]
[361685363,1747690232296,-500.0,0.00018355,2]
[361685364,1747690232306,-500.0,0.00018355,2]
[361685365,1747690232315,-386.39588461,0.00018355,2]
[361685366,1747690232325,-500.0,0.00018355,2]
[361685367,1747690232335,-500.0,0.00018355,2]
[361685368,1747690232344,-500.0,0.00018355,2]
[361685369,1747690232354,-500.0,0.00018355,2]
[361685370,1747690232363,-500.0,0.00018355,2]
[361685371,1747690232372,-500.0,0.00018355,2]
[361685372,1747690232381,-500.0,0.00018355,2]
[361685373,1747690232392,-340.02532355,0.00018355,2]
[361685374,1747690232401,-186.09962325,0.00018355,2]
[361685375,1747690232411,-151.0,0.00018356,2]
[361685376,1747690232422,-430.0,0.00018356,2]
[361685377,1747690232433,-430.0,0.00018356,2]
[361685378,1747690232443,-430.0,0.00018356,2]
[361685379,1747690232452,-430.0,0.00018356,2]
[361685380,1747690232461,-642.04,0.00018356,2]
[361685381,1747690232471,-107.51578517,0.00018356,2]
[361685387,1747690237853,-322.48421483,0.00018356,2]
[361685388,1747690237864,-430.0,0.00018356,2]
[361685389,1747690237875,-430.0,0.00018356,2]
[361685390,1747690237885,-430.0,0.00018356,2]
[361685391,1747690237895,-331.25,0.00018356,2]
[361685392,1747690237904,-430.0,0.00018356,2]
[361685393,1747690237915,-430.0,0.00018356,2]
[361685394,1747690237926,-430.0,0.00018356,2]
[361685395,1747690237936,-672.24,0.00018356,2]
[361685396,1747690237945,-430.0,0.00018356,2]
[361685397,1747690237955,-430.0,0.00018356,2]
[361685398,1747690237965,-430.0,0.00018356,2]
[361685399,1747690237975,-430.0,0.00018356,2]
[361685400,1747690237985,-430.0,0.00018356,2]
[361685401,1747690237994,-430.0,0.00018356,2]
[361685402,1747690238004,-430.0,0.00018356,2]
[361685403,1747690238013,-437.95,0.00018356,2]
[361685404,1747690238023,-430.0,0.00018356,2]
[361685405,1747690238032,-430.0,0.00018356,2]
[361685406,1747690238042,-196.78,0.00018356,2]
[361685407,1747690238051,-430.0,0.00018356,2]
[361685408,1747690238061,-430.0,0.00018356,2]
[361685409,1747690238071,-430.0,0.00018356,2]
[361685410,1747690238080,-430.0,0.00018356,2]
[361685411,1747690238090,-430.0,0.00018356,2]
[361685412,1747690238099,-433.14272139,0.00018356,2]
[361685413,1747690238109,-430.0,0.00018356,2]
[361685414,1747690238119,-430.0,0.00018356,2]
[361685415,1747690238128,-430.0,0.00018356,2]
[361685416,1747690238138,-430.0,0.00018356,2]
[361685417,1747690238148,-430.0,0.00018356,2]
[361685418,1747690238157,-112.69518173,0.00018356,2]
[361685489,1747691269680,245.24230066,0.00027,120]
[361685539,1747691432247,-975.75117966,0.00013562,2]
[361685540,1747691432258,-4024.24882034,0.00013562,2]
[361685541,1747691432267,-247.842669,0.00013699,2]
[361685542,1747691432277,-195.3270604,0.00016871,2]
[361685543,1747691432286,-1199.05395389,0.000169,2]
[361685544,1747691432295,-1182.8465128,0.00017,2]
[361685545,1747691432304,-1199.05395376,0.0001721,2]
[361685546,1747691432314,-175.382519,0.0001746,2]
[361685547,1747691432326,-300.0,0.0001752,2]
[361685548,1747691432336,-1199.05395376,0.00017521,2]
[361685549,1747691432346,-1199.05395376,0.00017831,2]
[361685550,1747691432356,-151.0,0.00017988,2]
[361685551,1747691432367,-428.83922466,0.00017998,2]
[361685552,1747691432377,-500.0,0.00017998,2]
[361685553,1747691432386,-500.0,0.00017998,2]
[361685554,1747691432395,-188.84701275,0.00017998,2]
[361685555,1747691432406,-149.86975059,0.00017998,2]
[361685556,1747691432416,-500.0,0.00017998,2]
[361685557,1747691432425,-500.0,0.00017998,2]
[361685558,1747691432434,-500.0,0.00017998,2]
[361685559,1747691432443,-158.98971941,0.00017998,2]
[361685568,1747691438049,-785.762,0.00017988,2]
[361685575,1747691438108,-399.87175423,0.00017988,2]
[361685577,1747691438118,-0.53578884,0.00017998,2]
[361685579,1747691438129,-500.0,0.00017998,2]
[361685581,1747691438139,-500.0,0.00017998,2]
[361685583,1747691438148,-585.41511035,0.00017998,2]
[361685585,1747691438157,-500.0,0.00017998,2]
[361685587,1747691438166,-13484.37526046,0.00017998,3]
[361685590,1747691438178,-374.55079505,0.00017998,3]
[361685592,1747691438189,-903.59819011,0.00017998,3]
[361685595,1747691438213,-5224.16671425,0.00017998,3]
[361685656,1747691440286,-193.57071547,0.00017998,3]
[361685657,1747691440296,-13084.61730956,0.00017998,2]
[361685658,1747691440307,-550.86767525,0.00017998,2]
[361685659,1747691440318,-896.90007,0.00017998,2]
[361685660,1747691440332,-850.41025125,0.00017998,2]
[361685679,1747691443178,-14740.50324635,0.00017998,2]
[361685680,1747691443235,-683.35011933,0.00017998,2]
[361685682,1747691443247,-110.02408916,0.00017998,2]
[361685683,1747691443256,-998.68447496,0.00017999,3]
[361685684,1747691443266,-212.35735062,0.00017999,3]
[361685685,1747691443275,-5314.77440922,0.00018,2]
[361685686,1747691443293,-2360.24911056,0.00018,2]
[361685688,1747691446220,-5000.0,0.0001782,2]
[361685689,1747691446230,-5474.91388842,0.00017998,3]
[361685690,1747691446240,-7380.4132746,0.00018,2]
[361685693,1747691446291,-26157.5,0.00018,2]
[361685694,1747691446349,-11.06320563,0.00018,2]
[361685695,1747691446360,-468.93643363,0.00018141,2]
[361685696,1747691446376,-730.11752013,0.00018141,2]
[361685697,1747691446386,-512.15166055,0.00018336,2]
[361685698,1747691446395,-160.0,0.00018355,2]
[361685699,1747691446407,-61.01259158,0.00018355,2]
[361685700,1747691446422,-438.98740842,0.00018355,2]
[361685701,1747691446436,-500.0,0.00018355,2]
[361685702,1747691446449,-500.0,0.00018355,2]
[361685703,1747691446461,-449.69480365,0.00018355,2]
[361685704,1747691446471,-500.0,0.00018355,2]
[361685705,1747691446481,-500.0,0.00018355,2]
[361685706,1747691446494,-303.85688134,0.00018355,2]
[361685709,1747691624539,242.388,0.00011,2]
[361685711,1747691688706,30316.01807051,0.00019,30]
[361685716,1747691957145,1363.83,0.00027397,120]
[361685731,1747692632280,-4645.56908824,0.00013426,2]
[361685732,1747692632292,-354.43091176,0.00013426,2]
[361685733,1747692632301,-243.718604,0.00013699,2]
[361685735,1747692632311,-253.0767503,0.00017355,2]
[361685737,1747692632320,-1170.16072672,0.000179,2]
[361685739,1747692632330,-1170.16072652,0.00018176,2]
[361685741,1747692632340,-628.74997642,0.00018256,2]
[361685743,1747692632349,-153.22672684,0.00018345,2]
[361685745,1747692632359,-321.26129658,0.00018345,2]
[361685748,1747692632368,-300.0,0.00018354,2]
[361685750,1747692632378,-500.0,0.00018355,2]
[361685751,1747692632387,-500.0,0.00018355,2]
[361685752,1747692632397,-500.0,0.00018355,2]
[361685755,1747692632406,-500.0,0.00018355,2]
[361685756,1747692632415,-500.0,0.00018355,2]
[361685760,1747692632425,-500.0,0.00018355,2]
[361685762,1747692632434,-500.0,0.00018355,2]
[361685766,1747692632444,-500.0,0.00018355,2]
[361685770,1747692632454,-500.0,0.00018355,2]
[361685774,1747692632463,-500.0,0.00018355,2]
[361685776,1747692632472,-500.0,0.00018355,2]
[361685778,1747692632482,-342.22808567,0.00018355,2]
[361685780,1747692632495,-500.0,0.00018355,2]
[361685783,1747692632504,-500.0,0.00018355,2]
[361685786,1747692632514,-500.0,0.00018355,2]
[361685789,1747692632523,-500.0,0.00018355,2]
[361685791,1747692632532,-500.0,0.00018355,2]
[361685793,1747692632541,-500.0,0.00018355,2]
[361685795,1747692632550,-500.0,0.00018355,2]
[361685796,1747692632560,-500.0,0.00018355,2]
[361685798,1747692632569,-176.620255,0.00018355,2]
[361685800,1747692632579,-500.0,0.00018355,2]
[361685802,1747692632588,-450.0,0.00018355,2]
[361685804,1747692632597,-500.0,0.00018355,2]
[361685806,1747692632606,-631.55997467,0.00018355,2]
[361685808,1747692632615,-500.0,0.00018355,2]
[361685810,1747692632625,-307.52538113,0.00018355,2]
[361685812,1747692632634,-2331.94807335,0.00018356,3]
[361685815,1747692632646,-563.02039358,0.00018356,3]
[361685883,1747692638169,-1070.16714045,0.00018356,3]
[361685884,1747692638181,-867.9702565,0.00018356,3]
[361685888,1747692638230,-4401.40742941,0.00018356,3]
[361685889,1747692638241,-3404.02223039,0.00018356,3]
[361685890,1747692638251,-212.35735062,0.00018356,3]
[361685891,1747692638260,-994.16531033,0.00018356,3]
[361685892,1747692638269,-3981.17095928,0.00018356,2]
[361685893,1747692638281,-11815.09686602,0.00018356,2]
[361685894,1747692638292,-915.73898797,0.00018356,2]
[361685895,1747692638309,-27588.12500118,0.00018356,2]
[361685896,1747692638318,-10090.13083767,0.00018356,3]
[361685897,1747692638328,-450.0,0.00018356,2]
[361685898,1747692638337,-430.0,0.00018356,2]
[361685899,1747692638347,-400.0,0.00018356,2]
[361685900,1747692638356,-400.0,0.00018356,2]
[361685901,1747692638371,-430.0,0.00018356,2]
[361685902,1747692638381,-430.0,0.00018356,2]
[361685903,1747692638391,-430.0,0.00018356,2]
[361685904,1747692638400,-350.0,0.00018356,2]
[361685905,1747692638409,-430.0,0.00018356,2]
[361685906,1747692638419,-430.0,0.00018356,2]
[361685907,1747692638428,-430.0,0.00018356,2]
[361685908,1747692638437,-430.0,0.00018356,2]
[361685909,1747692638447,-350.0,0.00018356,2]
[361685910,1747692638456,-430.0,0.00018356,2]
[361685911,1747692638465,-430.0,0.00018356,2]
[361685912,1747692638475,-430.0,0.00018356,2]
[361685913,1747692638485,-430.0,0.00018356,2]
[361685914,1747692638494,-430.0,0.00018356,2]
[361685915,1747692638504,-430.0,0.00018356,2]
[361685916,1747692638513,-430.0,0.00018356,2]
[361685917,1747692638522,-430.0,0.00018356,2]
[361685918,1747692638532,-430.0,0.00018356,2]
[361685919,1747692638542,-430.0,0.00018356,2]
[361685920,1747692638551,-430.0,0.00018356,2]
[361685921,1747692638561,-430.0,0.00018356,2]
[361685922,1747692638570,-403.42898893,0.00018356,2]
[361685923,1747692638579,-430.0,0.00018356,2]
[361685924,1747692638588,-466.37290687,0.00018356,2]
[361685925,1747692638598,-450.0,0.00018356,2]
[361685926,1747692638608,-430.0,0.00018356,2]
[361685927,1747692638618,-430.0,0.00018356,2]
[361685928,1747692638627,-430.0,0.00018356,2]
[361685929,1747692638636,-430.0,0.00018356,2]
[361685930,1747692638645,-430.0,0.00018356,2]
[361685931,1747692638655,-430.0,0.00018356,2]
[361685932,1747692638664,-430.0,0.00018356,2]
[361685933,1747692638674,-430.0,0.00018356,2]
[361685934,1747692638683,-450.0,0.00018356,2]
[361685935,1747692638692,-430.0,0.00018356,2]
[361685936,1747692638702,-430.0,0.00018356,2]
[361685937,1747692638714,-430.0,0.00018356,2]
[361685938,1747692638724,-424.41809084,0.00018356,2]
[361685939,1747692638733,-151.0,0.00018356,2]
[361685940,1747692638742,-545.73,0.00018356,2]
[361685941,1747692638753,-197.478662,0.00018356,2]
[361685942,1747692638762,-400.0,0.00018356,2]
[361685943,1747692638772,-400.0,0.00018356,2]
[361685944,1747692638781,-430.0,0.00018356,2]
[361685945,1747692638791,-1333.64,0.00018356,2]
[361685946,1747692638801,-1889.39,0.00018356,2]
[361685947,1747692638811,-430.0,0.00018356,2]
[361685948,1747692638820,-400.0,0.00018356,2]
[361685949,1747692638830,-524.0,0.00018356,2]
[361685950,1747692638839,-430.0,0.00018356,2]
[361685951,1747692638848,-430.0,0.00018356,2]
[361685952,1747692638858,-774.18,0.00018356,2]
[361685953,1747692638868,-271.17405752,0.00018356,2]
[361685954,1747692638878,-430.0,0.00018356,2]
[361685955,1747692638887,-430.0,0.00018356,2]
[361685956,1747692638896,-430.0,0.00018356,2]
[361685957,1747692638905,-430.0,0.00018356,2]
[361685958,1747692638914,-641.12,0.00018356,2]
[361685959,1747692638923,-732.45,0.00018356,2]
[361685960,1747692638933,-430.0,0.00018356,2]
[361685961,1747692638941,-430.0,0.00018356,2]
[361685962,1747692638951,-1000.0,0.00018356,2]
[361685963,1747692638960,-400.0,0.00018356,2]
[361685964,1747692638970,-430.0,0.00018356,2]
[361685965,1747692638979,-430.0,0.00018356,2]
[361685966,1747692638989,-430.0,0.00018356,2]
[361685967,1747692639000,-430.0,0.00018356,2]
[361685968,1747692639010,-400.0,0.00018356,2]
[361685969,1747692639021,-430.0,0.00018356,2]
[361685970,1747692639030,-430.0,0.00018356,2]
[361685971,1747692639041,-430.0,0.00018356,2]
[361685972,1747692639050,-430.0,0.00018356,2]
[361685973,1747692639059,-690.29,0.00018356,2]
[361685974,1747692639070,-151.0,0.00018356,2]
[361685975,1747692639081,-430.0,0.00018356,2]
[361685976,1747692639090,-430.0,0.00018356,2]
[361685977,1747692639100,-430.0,0.00018356,2]
[361685978,1747692639109,-151.0,0.00018356,2]
[361685979,1747692639118,-430.0,0.00018356,2]
[361685980,1747692639128,-430.0,0.00018356,2]
[361685981,1747692639137,-430.0,0.00018356,2]
[361685982,1747692639147,-430.0,0.00018356,2]
[361685983,1747692639157,-430.0,0.00018356,2]
[361685984,1747692639166,-430.0,0.00018356,2]
[361685985,1747692639176,-430.0,0.00018356,2]
[361685986,1747692639186,-190.0,0.00018356,2]
[361685987,1747692639195,-1145.741749,0.00018356,2]
[361685988,1747692639204,-430.0,0.00018356,2]
[361685989,1747692639214,-626.28,0.00018356,2]
[361685990,1747692639223,-430.0,0.00018356,2]
[361685991,1747692639233,-1145.741749,0.00018356,2]
[361685992,1747692639242,-437.69,0.00018356,2]
[361685993,1747692639251,-450.0,0.00018356,2]
[361685994,1747692639261,-430.0,0.00018356,2]
[361685995,1747692639270,-430.0,0.00018356,2]
[361685996,1747692639281,-450.0,0.00018356,2]
[361685997,1747692639290,-400.0,0.00018356,2]
[361685998,1747692639300,-430.0,0.00018356,2]
[361685999,1747692639309,-430.0,0.00018356,2]
[361686000,1747692639320,-430.0,0.00018356,2]
[361686001,1747692639329,-675.68,0.00018356,2]
[361686002,1747692639338,-430.0,0.00018356,2]
[361686003,1747692639348,-430.0,0.00018356,2]
[361686004,1747692639357,-430.0,0.00018356,2]
[361686005,1747692639367,-430.0,0.00018356,2]
[361686006,1747692639377,-430.0,0.00018356,2]
[361686007,1747692639386,-430.0,0.00018356,2]
[361686008,1747692639396,-430.0,0.00018356,2]
[361686009,1747692639407,-430.0,0.00018356,2]
[361686010,1747692639416,-430.0,0.00018356,2]
[361686011,1747692639426,-430.0,0.00018356,2]
[361686012,1747692639438,-430.0,0.00018356,2]
[361686013,1747692639447,-347.90382816,0.00018356,2]
[361686022,1747692640540,-5000.0,0.00018172,2]
[361686024,1747692640550,-82.09617184,0.00018356,2]
[361686026,1747692640560,-131.3392748,0.00018356,2]
[361686028,1747692640571,-298.6607252,0.00018356,2]
[361686029,1747692640581,-151.0,0.00018356,2]
[361686030,1747692640590,-489.05044146,0.00018356,2]
[361686031,1747692640602,-40.24955854,0.00018356,2]
[361686032,1747692640612,-430.0,0.00018356,2]
[361686033,1747692640622,-430.0,0.00018356,2]
[361686034,1747692640631,-430.0,0.00018356,2]
[361686035,1747692640641,-450.0,0.00018356,2]
[361686036,1747692640650,-349.74322942,0.00018356,2]
[361686044,1747692643398,-388.23677058,0.00018356,2]
[361686045,1747692643408,-430.0,0.00018356,2]
[361686046,1747692643417,-221.81728258,0.00018356,2]
[361686047,1747692643429,-208.18271742,0.00018356,2]
[361686048,1747692643438,-253.78809849,0.00018356,2]
[361686049,1747692643460,-176.21190151,0.00018356,2]
[361686050,1747692643470,-450.0,0.00018356,2]
[361686051,1747692643480,-430.0,0.00018356,2]
[361686052,1747692643490,-151.0,0.00018356,2]
[361686053,1747692643500,-430.0,0.00018356,2]
[361686054,1747692643509,-430.0,0.00018356,2]
[361686055,1747692643518,-430.0,0.00018356,2]
[361686056,1747692643531,-353.08296157,0.00018356,2]
[361686057,1747692643541,-289.63593826,0.00018356,2]
[361686058,1747692643550,-430.0,0.00018356,2]
[361686059,1747692643560,-430.0,0.00018356,2]
[361686060,1747692643569,-781.97,0.00018356,2]
[361686061,1747692643578,-430.0,0.00018356,2]
[361686062,1747692643588,-494.7,0.00018356,2]
[361686063,1747692643596,-430.0,0.00018356,2]
[361686064,1747692643606,-450.0,0.00018356,2]
[361686065,1747692643615,-450.0,0.00018356,2]
[361686066,1747692643625,-430.0,0.00018356,2]
[361686067,1747692643634,-430.0,0.00018356,2]
[361686068,1747692643644,-430.0,0.00018356,2]
[361686069,1747692643653,-430.0,0.00018356,2]
[361686070,1747692643662,-430.0,0.00018356,2]
[361686071,1747692643672,-430.0,0.00018356,2]
[361686072,1747692643681,-430.0,0.00018356,2]
[361686073,1747692643690,-151.0,0.00018356,2]
[361686074,1747692643700,-430.0,0.00018356,2]
[361686075,1747692643713,-450.0,0.00018356,2]
[361686076,1747692643722,-450.0,0.00018356,2]
[361686077,1747692643731,-151.0,0.00018356,2]
[361686078,1747692643740,-460.0,0.00018356,2]
[361686079,1747692643750,-430.0,0.00018356,2]
[361686080,1747692643759,-651.02,0.00018356,2]
[361686081,1747692643768,-430.0,0.00018356,2]
[361686082,1747692643777,-430.0,0.00018356,2]
[361686083,1747692643786,-430.0,0.00018356,2]
[361686084,1747692643795,-450.0,0.00018356,2]
[361686085,1747692643806,-463.16230889,0.00018356,2]
[361686086,1747692643815,-430.0,0.00018356,2]